{"text_format":"1","workbook":"xlsx","n_sheets":3,"sheets":["Prihlaska","Připojištění","sazby"],"not_rendered":{"charts":0,"images":5,"macros":1,"external_links":0,"defined_names":8,"comments":1,"pivot_tables":0},"unopened":[],"bounds":{"document_bytes":16777216,"sheet_cells":100000,"rows_first":2000,"rows_last":500,"rows_between":2000,"halvings":0,"cell_chars":16384,"cell_head_chars":4096},"cells_cut":0,"cells_raw":0,"read":"whole","date_system":"1900"}

{"sheet":"Prihlaska","index":0,"n_rows":45,"n_cols":9,"rows_kept":45,"cut":false,"hidden":false,"merged":[[44,7,44,9],[43,0,43,1],[34,0,34,2],[35,0,35,2],[37,0,37,9],[38,0,38,9],[41,0,41,9],[40,0,40,9],[39,0,39,9],[0,0,0,9],[6,3,6,5],[7,3,7,5],[6,6,6,7],[4,6,4,7],[3,0,3,2],[5,3,5,5],[4,8,4,9],[5,8,5,9],[1,0,1,9],[5,0,5,2],[4,0,4,2],[7,6,7,7],[7,8,7,9],[5,6,5,7],[4,3,4,5],[31,0,31,9],[10,0,10,2],[32,0,32,9],[6,8,6,9],[28,6,28,7],[11,0,11,2],[8,0,8,2],[23,0,24,6]]}
["Přihláška k pojištění"]
["dle rámcové pojistné smlouvy č. 1690696028 (dále jen „Smlouva“) vedené Generali Českou pojišťovnou a.s., IČO 45 27 29 56, se sídlem Spálená 75/16, 110 00  Praha 1 - Nové Město, Česká republika"]
[]
["Zájemce o pojištění"]
["Název společnosti/jméno  ",null,null,null,null,null,"Sídlo podnikání"]
["Kontakt (tel., fax., e-mail)"]
[null,null,null,null,null,null,"Korespondenční"]
[null,null,null,null,null,null,"adresa:"]
["Zapsaný u KAČR ke dni    ",null,null,null,"Pod číslem   ",null,"IČO      ",null,"DIČ      "]
["1 Výše příjmů za rok",null,null,201]
["Příjmová skupina"]
["Limit pojistného plnění"]
[]
["2 Pojištěný předmět činnosti"]
["A – Základní rozsah pojištění ve smyslu článku 2.1. Smlouvy"]
["Pojištěným se rozumí rovněž auditoři vykonávající auditor. činnost jménem a na účet pojištěného."]
["B – Pojištění odpovědnosti  vyplývající z činnosti daňového poradenství"]
["C – Pojištění odp. vyplývající z činnosti účetních poradců, vedení účetnictví a daňové evidence"]
["D – Pojištění odpovědnosti  vzniklou v souvislosti s provozem kanceláře"]
["E – Pojištění odp. vyplývající z poradenské a konzult. činnosti, zpracování odb. studií a posudků"]
["F – Pojištění odpovědnosti vzniklou v souvislosti s činností oceňování majetku"]
["J - Ujednání k majetkové propojenosti pro pojištěné právnické osoby (volitelné připojištění)"]
["K - Úmyslné jednání zaměstnance (volitelné připojištění)"]
["L - Škoda či újma vzniklá členu orgánu společnosti a věci převztaté k výkonu funkce (volitelné připojištění)"]
[]
[]
["H – Poj.odp. na pojištěným převzatých nebo užívaných hmotných movitých věcech"]
["I – Rozšíření územního rozsahu"]
["3 R – Pojištění retroaktivity ke dni "]
[]
["1 jedná se o roční příjmy z pojišťovaných činností"]
["2 volitelná připojištění B - R zaškrtněte nebo vyberte, připojištění D je součástí základního rozsahu pojištění zdarma"]
["3 pojištění retroaktivity lze sjednat za podmínek uvedených v článku 3.2.2. smlouvy. Za předpokladu předchozího pojištění u České pojišťovny a.s., Generali Pojišťovny a.s., Pojišťovny Patricie a.s., Generali České pojišťovny, a.s., Kooperativy pojišťovny, a.s. či ČSOB Pojišťovny, a.s. je sjednána retroaktivita automaticky a bezplatně ode dne počátku předchozího pojištění, nejdříve ke dni 1.4.1996."]
[]
["Počátek pojištění"]
["Limit pojistného plnění",null,null,{"$f":"sazby!L31","v":500000},"Pojistné",{"$f":"sazby!H25","v":3335},"var.:  ",{"$f":"Připojištění!E3","v":3}]
[]
["Pojištěný podpisem této Přihlášky prohlašuje, že jsou mu známy podmínky stanovené rámcovou pojistnou smlouvou a tímto přistupuje k této smlouvě a sjednává pojištění v jím zvoleném rozsahu. Zároveň svým podpisem dává souhlas s předáním informací o rozsahu pojistné ochrany a informací, včetně veškerých podkladů, týkajících se škodních událostí řešených z této pojistné smlouvy pojistníkovi - Komoře auditorů České republiky."]
["Pojištěný dále prohlašuje, že byl seznámen s pojistnými podmínkami, s „Informačním dokumentem o pojistném produktu“ a s „Předsmluvními informacemi“. Informační dokument o pojistném produktu a Předsmluvní informace jsou nedílnou součástí pojistné smlouvy a tvoří jeho přílohy. Jmenované dokumenty jsou dále dostupné na adrese pojistníka https://www.kacr.cz/pojisteni-cinnosti-auditoru."]
["Pojištěný prohlašuje, že byl informován o zpracování jím sdělených osobních údajů a že podrobnosti týkající se osobních údajů jsou dostupné na www.generaliceska.cz. Pojištěný se zavazuje, že pojišťovně oznámí případné změny osobních údajů nejpozději do 10-ti pracovních dnů. Pojištěný dále prohlašuje, že je seznámen a souhlasí se zmocněním a zproštěním mlčenlivosti podle článku 15 VPPPI-P-01/2020.\nPojištěný prohlašuje, že je plátcem pojistného. Zavazuje se hradit pojistné řádně a včas na účet makléře na základě jím vystaveného vyúčtování. Dlužné pojistné má pojištěný povinnost hradit na účet vedoucího pojistitele uvedený v upomínce.\n"]
["Pojištění začíná nejdříve dnem následujícím po dni doručení přihlášky makléřské společnosti, popřípadě dnem sjednaným pro počátek pojištění retroaktivity."]
["Výše pojistného bude makléřem vypočtena dle podmínek stanovených ve smlouvě a vyúčtování písemně doručeno pojištěnému s potvrzením o pojištění."]
[]
["V",null,null,"Dne"]
[null,null,null,null,null,null,null,"podpis"]

{"sheet":"Připojištění","index":1,"n_rows":17,"n_cols":11,"rows_kept":17,"cut":false,"hidden":true,"merged":[[2,2,16,2]]}
[]
["Pojištěný - č. osvědč.:",{"$f":"Prihlaska!F9","v":0},"poj. ke dni","   Poj. riziko",null,"pojistné","limit plnění","Příjmy ","Splatnost","Uhrazeno","Pojistné"]
["Název společnosti/jméno:      ",{"$f":"Prihlaska!D5","v":0},{"$f":"IF(Prihlaska!D35<>\"\",Prihlaska!D35,\"\")","v":""},"A 1-4",{"$f":"sazby!L30","v":3},{"$f":"IF(ISERROR(DGET(sazby!$A$1:$C$38,3,G3:H4)),\"Vyberte limit plnění!\",DGET(sazby!$A$1:$C$38,3,G3:H4))","v":3335},"varianta","limit"]
[null,{"$f":"Prihlaska!I5","v":0},null,null,null,null,{"$f":"E3","v":3},{"$f":"G13","v":500000}]
[null,{"$f":"Prihlaska!I6","v":0},null,"B (ano-ne)",{"$f":"IF(sazby!L2=FALSE,\"ne\",\"ano\")","v":"ne"},{"$f":"IF(E5=\"ano\",ROUND(F3*0.2,0),0)","v":0}]
["Korespondenční adresa",{"$f":"Prihlaska!I7","v":0},null,"C (ano-ne)",{"$f":"IF(sazby!L3=FALSE,\"ne\",\"ano\")","v":"ne"},{"$f":"IF(E6=\"ano\",ROUND(F3*0.1,0),0)","v":0},null,"jednoráz.",null,null,{"$f":"IF(I3=\"pololetní\",CEILING(#REF!/2,1),\"\")","v":""}]
[null,{"$f":"Prihlaska!I8","v":0},null,"D (ano-ne)","ano",0,null,"pololetní",null,null,{"$f":"IF(ISNUMBER(K6),#REF!-K6,\"\")","v":""}]
["Kontakt (tel., fax., e-mail): ",{"$f":"Prihlaska!D6","v":0},null,"E (ano-ne)",{"$f":"IF(sazby!L5=FALSE,\"ne\",\"ano\")","v":"ne"},{"$f":"IF(E8=\"ano\",ROUND(F3*0.1,0),0)","v":0},null,"čtvrtletní",null,null,{"$f":"IF(I3=\"čtvrtletní\",CEILING(#REF!/4,1),\"\")","v":""}]
[null,{"$f":"Prihlaska!D7","v":0},null,"F (ano-ne)",{"$f":"IF(sazby!L6=FALSE,\"ne\",\"ano\")","v":"ne"},{"$f":"IF(E9=\"ano\",ROUND(F3*0.13,0),0)","v":0},null,null,null,null,{"$f":"IF(ISNUMBER(K8),CEILING((#REF!-K8)/3,1),\"\")","v":""}]
[null,{"$f":"Prihlaska!D8","v":0},null,null,null,null,null,"Udaná výše příjmů",null,null,{"$f":"IF(ISNUMBER(K9),CEILING((#REF!-K8-K9)/2,1),\"\")","v":""}]
["IČ",{"$f":"Prihlaska!H9","v":0},null,"H - limit",{"$f":"INDEX(sazby!I11:I13,sazby!I10)","v":"ne"},{"$f":"IF(E11=100000,650,IF(E11=500000,3250,0))","v":0},null,{"$f":"Prihlaska!E10","v":0},null,null,{"$f":"IF(ISNUMBER(K10),#REF!-K8-K9-K10,\"\")","v":""}]
["DIČ",{"$f":"Prihlaska!J9","v":0},null,"I  (SR - EU - ne)",{"$f":"INDEX(sazby!I17:I19,sazby!I16)","v":"ne"},{"$f":"IF(E12=\"SR\",ROUND(sazby!H23*0.1,0),IF(E12=\"EU\",ROUND(sazby!H23*0.25,0),0))","v":0},null,"Skupina"]
[null,null,null,"R ke dni",{"$f":"IF(Prihlaska!G29<>\"\",Prihlaska!G29,\"ne\")","v":"ne"},{"$f":"IF(E13=\"ne\",0,CEILING((C3-E13)/365,1)*0.05*sazby!H24)","v":0},{"$f":"sazby!L31","v":500000},{"$f":"INDEX(prijem,sazby!L29,1)","v":"do 100 000 Kč"},{"$f":"C3+30","v":{"$error":"#VALUE!"}},null,{"$f":"sazby!H25","v":3335}]
[null,null,null,"J (ano-ne)",{"$f":"IF(sazby!L10=FALSE,\"ne\",\"ano\")","v":"ne"},{"$f":"IF(E14=\"ano\",ROUND(IF(F3*0.1>1500,F3*0.1,1500),0),0)","v":0}]
[null,null,null,"K (ano-ne)",{"$f":"IF(sazby!L11=FALSE,\"ne\",\"ano\")","v":"ne"},{"$f":"IF(E15=\"ano\",1500,0)","v":0}]
[null,null,null,"L (ano-ne)",{"$f":"IF(sazby!L12=FALSE,\"ne\",\"ano\")","v":"ne"},{"$f":"IF(E16=\"ano\",750,0)","v":0}]
["poř. číslo přihlášky"]

{"sheet":"sazby","index":2,"n_rows":38,"n_cols":18,"rows_kept":38,"cut":false,"hidden":true,"merged":[]}
["varianta","limit","pojistné","Výdělek",null,null,null,"Splatnost","koeficient",null,"Stavy tlačítek",null,null,"Výdělek",1,2,3,4]
[1,500000,4586,null,null,null,null,"jednoráz.",1,null,"B",false,1,"do 100 000 Kč",null,null,500000]
[1,1000000,8462,null,null,null,null,"pololetní",1,null,"C",false,2,"nad 100 000 do 200 000 Kč",null,null,1000000]
[1,2000000,11338,null,null,null,null,"čtvrtletní",1,null,"D",false,3,"do 250 000 Kč",null,500000]
[1,3000000,16673,null,null,null,null,null,null,null,"E",false,4,"do 500 000 Kč",500000]
[1,4000000,21391,null,null,null,null,null,null,null,"F",false,5,"nad 200 000 do 500 000 Kč",null,null,2000000]
[1,5000000,25230,null,null,null,null,null,null,null,"G",false,6,"od 250 000 do 500 000 Kč",null,1000000]
[1,7000000,33941,null,null,null,null,null,null,null,"I",false,7,"nad 500 000 do 1 000 000 Kč",1000000,2000000,4000000]
[1,10000000,42376,null,null,null,null,null,null,null,"J",false,8,"nad 1 000 000 do 2 000 000 Kč",2000000,3000000,7000000]
[1,15000000,69079,null,null,null,null,"škodu na věcech převzatých",1,null,"J",false,9,"nad 2 000 000 do 3 000 000 Kč",3000000,5000000,10000000]
[1,20000000,84587,null,null,null,null,"Nesjednávat","ne",null,"K",false,10,"nad 3 000 000 do 4 000 000 Kč",4000000,7000000,15000000]
[2,500000,4169,null,null,null,null,"limit plnění 100.000 Kč",100000,null,"L",false,11,"nad 4 000 000 do 5 000 000 Kč",5000000,10000000,20000000]
[2,1000000,6365,null,null,null,null,"limit plnění 500.000 Kč",500000,null,null,null,12,"nad 5 000 000 do 7 000 000 Kč",7000000,15000000,30000000]
[2,2000000,9449,null,null,null,null,null,null,null,null,null,13,"nad 7 000 000",null,null,40000000]
[2,3000000,13339,null,null,null,null,null,null,null,null,null,14,"nad 7 000 000 do 10 000 000 Kč",10000000,20000000]
[2,5000000,23969,null,null,null,null,"Rozšíření územního rozsahu",1,null,null,null,15,"nad 10 000 000 do 15 000 000 Kč",15000000,30000000]
[2,7000000,27643,null,null,null,null,"Nesjednávat","ne",null,null,null,16,"nad 15 000 000 Kč",20000000,40000000]
[2,10000000,34514,null,null,null,null,"na území Slovenské republiky","SR",null,null,null,17,"nad 10 000 000 s krytím 50 000 000,-",null,null,null,50000000]
[2,15000000,63396,null,null,null,null,"na území Evropy","EU",null,null,null,18,"nad 10 000 000 s krytím 60 000 000,-",null,null,null,60000000]
[2,20000000,77621,null,null,null,null,null,null,null,null,null,19,"nad 10 000 000 s krytím 70 000 000,-",null,null,null,70000000]
[2,30000000,105439,null,null,null,null,null,null,null,null,null,20,"nad 10 000 000 s krytím 80 000 000,-",null,null,null,80000000]
[2,40000000,115969,null,null,null,null,"Pojistné",null,null,null,null,21,"nad 10 000 000 s krytím 90 000 000,-",null,null,null,90000000]
[3,500000,3335,null,null,null,null,{"$f":"SUM(Připojištění!F3:F11,Připojištění!F14:F16)","v":3335},"Součet za pojistné",null,null,null,22,"nad 10 000 000 s krytím 100 000 000,-",null,null,null,100000000]
[3,1000000,6044,null,null,null,null,{"$f":"Připojištění!F12+sazby!H23","v":3335},"S územním rozsahem"]
[3,2000000,7794,null,null,null,null,{"$f":"IF(ISERROR(H24+Připojištění!F13),\"Zvolte limit plnění!\",(H24+Připojištění!F13))","v":3335},"S retroaktivitou"]
[3,4000000,13339]
[3,7000000,23343]
[3,10000000,36432,null,null,null,null,null,null,null,null,null,null,null,"Varianta"]
[3,15000000,51471,null,null,null,null,null,null,null,"Výdělek",1,null,null,1,"Jednonásobek příjmů, minimálně 500 000,- Kč"]
[3,20000000,63026,null,null,null,null,null,null,null,"Varianta",3,null,null,2,"Dvojnásobek příjmů, minimálně 500 000,- Kč"]
[3,30000000,96456,null,null,null,null,"roky",null,null,"Krytí",{"$f":"IF(INDEX(O2:R23,L29,L30)<>0,INDEX(O2:R23,L29,L30),\"Zvolte limit plnění!\")","v":500000},null,null,3,"Pětinásobek příjmů, minimálně 500 000,- Kč"]
[3,40000000,106210,null,null,null,null,null,null,null,null,null,null,null,4,"Varianta 4"]
[4,50000000,134757,null,null,null,null,null,null,null,null,null,null,null,{"$f":"IF(INDEX($O$2:$R$23,$L$29,1)<>0,P29,\"\")","v":""}]
[4,60000000,143185,null,null,null,null,2021,null,null,null,null,null,null,{"$f":"IF(INDEX($O$2:$R$23,$L$29,2)<>0,P30,\"\")","v":""}]
[4,70000000,150484,null,null,null,null,2022,null,null,null,null,null,null,{"$f":"IF(INDEX($O$2:$R$23,$L$29,3)<>0,P31,\"\")","v":"Pětinásobek příjmů, minimálně 500 000,- Kč"}]
[4,80000000,158344,null,null,null,null,"odhad 2023",null,null,null,null,null,null,{"$f":"IF(INDEX($O$2:$R$23,$L$29,4)<>0,P32,\"\")","v":""}]
[4,90000000,166206]
[4,100000000,174349]